Cogmind - Beta 16.1 @@@ ROGUE MODE // 2026.04.03 @ 23:43:18 Player: RHAHI Result: Destroyed by DAS Turret with DAS Cannon Performance ------------- Evolutions (0) 0 Regions Visited (3) 600 Robots Destroyed (26) 130 Value Destroyed (393) 393 Prototype IDs (27) 540 Alien Tech Used (0) 0 Bonus (282) 282 TOTAL SCORE: 1945 Bonus ------- Aligned with FarCom 300 Friendly Fire -18 Cogmind --------- Core Integrity 0/250 Matter 300/300 Energy 100/100 System Corruption 0% Temperature Cool (2) Movement Flying (40) Location -10/Exiles Parts ------- > --- POWER (1) -------- (None) > --- PROPULSION (2) --- Flight Unit > --- UTILITY (2) ------ Seismic Detector Improved Targeting Computer > --- WEAPON (2) ------- (None) > --- INVENTORY (5) ---- Flight Unit Flight Unit High-capacity Storage Unit Autogun Field Lobotomy Kit (5) Peak State ------------ > --- POWER ------------ Light Nuclear Core > --- PROPULSION ------- Improved Treads Improved Treads > --- UTILITY ---------- High-capacity Storage Unit Seismic Detector > --- WEAPON ----------- Autogun Autogun > --- INVENTORY -------- Light Ion Engine Improved Treads Flight Unit Flight Unit Flight Unit Flight Unit Improved Heat Sink Small Storage Unit Medium Storage Unit Large Storage Unit Medium Matter Pod Structural Scanner Improved Targeting Computer Propulsion Shielding Light Armor Plating Tractor Beam Autogun Autogun Grenade Launcher Mining Laser [Rating: 15] Favorites ----------- Power Ion Engine Engine Ion Engine Power Core Light Nuclear Core Propulsion Improved Treads Treads Improved Treads Wheel Compact Wheel Flight Unit Flight Unit Utility Seismic Detector Device Seismic Detector Storage Small Storage Unit Processor Improved Targeting Computer Protection Light Armor Plating Weapon Autogun Ballistic Gun Autogun Launcher Grenade Launcher Special Weapon Mining Laser Build | -11 -10 -10 -10 ------- Run | Yrd Mat Min Exi Slots Evolved . | . . . . Power . | . . . . Propulsion . | . . . . Utility . | . . . . Weapon . | . . . . Parts Attached 32 | 6 15 11 . Power 5 | 1 2 2 . Engine 4 | 1 1 2 . Core 1 | . 1 . . Reactor . | . . . . Propulsion 8 | 2 4 2 . Treads 4 | . 4 . . Leg . | . . . . Wheel 2 | 2 . . . Hover . | . . . . Flight 2 | . . 2 . Utility 9 | 1 5 3 . Device 3 | . 2 1 . Storage 3 | 1 2 . . Processor 1 | . . 1 . Hackware . | . . . . Protection 2 | . 1 1 . Artifact . | . . . . Weapon 10 | 2 4 4 . Energy Gun . | . . . . Energy Cannon . | . . . . Ballistic Gun 6 | 2 3 1 . Ballistic Cannon . | . . . . Launcher 1 | . . 1 . Special Weapon 3 | . 1 2 . Impact Weapon . | . . . . Slashing Weapon . | . . . . Piercing Weapon . | . . . . Special Melee Weapon . | . . . . Unidentified Prototypes . | . . . . Parts Lost 10 | . 1 5 4 Power 1 | . . . 1 Propulsion 3 | . 1 1 1 Utility 1 | . . 1 . Weapon 5 | . . 3 2 Highest Loss Streak 5 | . 1 5 4 To Critical Strikes . | . . . . Average Backups 8 | 2 9 6 5 Power . | . 1 . . Propulsion 1 | . 1 2 2 Utility 3 | 1 4 3 . Weapon 2 | . 2 1 1 Tool/Special . | . . . . Unused Backups 21 | 1 6 8 6 Power 1 | . . 1 . Propulsion 6 | . 1 3 2 Utility 12 | . 5 4 3 Weapon 1 | 1 . . . Tool/Special 1 | . . . 1 Average Slot Usage (%) 94 | . 99 84 97 Engine 10 | . 12 6 12 Core 1 | . 1 2 . Treads 16 | . 24 4 . Wheel 2 | . 3 . . Flight 8 | . . 23 28 Device 11 | . 9 16 14 Storage 9 | . 14 2 . Processor 2 | . . 6 14 Protection 2 | . 4 . . Ballistic Gun 21 | . 27 11 . Special Weapon 3 | . . 9 12 Peak Build Rating 15 | 6 15 15 10 Average Rating 9 | 5 11 8 8 On Entrance 7 | . 6 15 8 Avg Prop Armor Cover (%) 3 | . . 3 . Naked Turns . | . . . . Heaviest Build 54 | 12 52 54 8 Greatest Support 46 | 32 46 46 8 Greatest Overweight (x) 1 | . 1 1 . Average Overweight (x) . | . . . . Largest Inventory Capacity 20 | 8 20 20 5 Average Capacity 11 | 7 13 7 5 Most Carried 20 | 5 20 20 5 Average Carried 8 | 2 9 6 4 Final Capacity 20 | 8 20 5 5 Final Carried 20 | 5 20 5 5 Class Distribution -------------------- 100% | Mutant Dominant Class ---------------- Mutant | -10/Materials Mutant | -10/Mines Mutant | -10/Exiles Resources | -11 -10 -10 -10 ----------- Run | Yrd Mat Min Exi Matter Collected 1233 | 302 723 200 8 Remotely . | . . . . Salvage Created 859 | 142 658 59 . Parts 50 | 11 35 4 . Haulers Intercepted 2 | . 2 . . Recyclers Shooed 1 | 1 . . . Parts Field Recycled . | . . . . Retrieved Matter . | . . . . Parts Self-Destructed . | . . . . Prevented . | . . . . Parts Restored . | . . . . Kills | -11 -10 -10 -10 ------- Run | Yrd Mat Min Exi Combat Hostiles Destroyed 10 | . 10 . . Guns 10 | . 10 . . Classes Destroyed 7 | 2 4 1 . Worker 2 | . . 2 . Tunneler 5 | 4 1 . . Hauler 2 | . 2 . . Recycler 4 | 1 2 1 . Watcher 3 | . 3 . . Swarmer 4 | . 4 . . Grunt 6 | . 6 . . Best Kill Streak 3 | 2 3 1 . Combat Bots Only 2 | . 2 . . Max Kills in Single Turn 1 | 1 1 1 . Gunslinging . | . . . . Exploded . | . . . . Melee . | . . . . Uniques/NPCs Destroyed . | . . . . Combat | -11 -10 -10 -10 -------- Run | Yrd Mat Min Exi Hostile Shots Fired 69 | . 43 22 4 Missed 12 | . 7 4 1 Hits 57 | . 36 18 3 Projectile 57 | . 36 18 3 AOE 20 | . . 20 . Damage Taken 1430 | . 424 816 190 Core 274 | . 41 189 44 Absorbed by Shields . | . . . . Redirected to Shielding 26 | . . 26 . Regen/Repaired (Parts) 214 | . 214 . . Core Remaining (%) 100 | 100 . . . Volleys Fired 92 | 21 62 8 1 Largest 2 | 2 2 1 1 Hottest 100 | 40 100 100 23 Shots Fired 170 | 42 119 8 1 Gun 163 | 42 114 6 1 Cannon . | . . . . Launcher . | . . . . Special 7 | . 5 2 . Kinetic 163 | 42 114 6 1 Thermal 7 | . 5 2 . Explosive . | . . . . Electromagnetic . | . . . . Robot Hit Streak 18 | 5 18 3 2 Robot Miss Streak 5 | 4 5 2 . Penetration Max . | . . . . Secondary Targets . | . . . . Shots Hit Robots 107 | 27 74 5 1 Core Hits 44 | 11 30 3 . Critical Kills . | . . . . Critical Parts Destroyed . | . . . . Critical Strikes . | . . . . Melee Attacks . | . . . . Impact . | . . . . Slashing . | . . . . Piercing . | . . . . Sneak Attacks . | . . . . Combat Hostiles . | . . . . Follow-up Attacks . | . . . . Damage Inflicted 1387 | 210 1058 101 18 Guns 1312 | 210 1046 38 18 Cannons . | . . . . Explosions . | . . . . Melee . | . . . . Ramming 27 | . 12 15 . Kinetic 1312 | 210 1046 38 18 Thermal 48 | . . 48 . Explosive . | . . . . Electromagnetic . | . . . . Impact . | . . . . Slashing . | . . . . Piercing . | . . . . Highest Corruption . | . . . . Average Corruption . | . . . . Corruption Purged . | . . . . Corruption Blocked . | . . . . Overload Shots . | . . . . Overflow Damage . | . . . . Projectiles . | . . . . Explosions . | . . . . Melee . | . . . . Knockbacks . | . . . . Impact . | . . . . Kinetic . | . . . . Secondary . | . . . . Self-Inflicted Damage . | . . . . Shots . | . . . . Rammed 3 | . 2 1 . Targets Rammed 4 | . 2 2 . Kicked . | . . . . Crushed 1 | . . 1 . Highest Temperature 96 | . 96 . 5 Average Temperature 25 | . 25 . 5 Received Heat Transfer 141 | . 141 . . Siege Activations . | . . . . Martial Activations . | . . . . Shielding Activations . | . . . . Robots Disrupted . | . . . . Combat Hostiles . | . . . . Robots Corrupted . | . . . . Combat Hostiles . | . . . . Parts Fried . | . . . . Impact Corruptions . | . . . . Robots Melted . | . . . . Combat Hostiles . | . . . . Parts Melted 1 | . . 1 . Heat Transferred 100 | . . 100 . Parts Sabotaged . | . . . . Parts Stolen . | . . . . Parts Stripped . | . . . . Power Chain Reactions . | . . . . Alert | -11 -10 -10 -10 ------- Run | Yrd Mat Min Exi Maximum Alert Level . | . . . . Low Security (%) 100 | 100 100 100 . Level 1 . | . . . . Level 2 . | . . . . Level 3 . | . . . . Level 4 . | . . . . Level 5 . | . . . . High Security . | . . . . Max Security . | . . . . Peak Influence 67 | 5 67 30 . Initial 8 | . . 8 . Average 9 | . 13 2 . Influence Increases 496 | 25 366 105 . Destroy 0b10 Robot/C 200 | . 200 . . Destroy 0b10 Robot/NC 80 | 25 40 15 . Destroy Leader 50 | . 50 . . Successful Hack 54 | . 54 . . Disable Machine 15 | . 15 . . Destroy Structure 7 | . 7 . . Lose Combat Pursuer 90 | . . 90 . Influence Decreases 496 | 25 343 128 . Entered New Map 15 | . . 15 . Time Decay 456 | 25 324 107 . Lost Part 10 | . 10 . . Lost Ally 6 | . . 6 . Purge Threat 9 | . 9 . . Squads Dispatched 1 | . 1 . . Investigation 1 | . 1 . . Extermination . | . . . . Reinforcement . | . . . . Assault . | . . . . Garrison . | . . . . Intercept . | . . . . Searches Triggered . | . . . . Construction Impeded . | . . . . Haulers Reinforced . | . . . . Active Scanning Responses . | . . . . Cargo Convoy Interrupts . | . . . . Stealth | -11 -10 -10 -10 --------- Run | Yrd Mat Min Exi Distress Signals . | . . . . Communications Jammed . | . . . . Distress Signals . | . . . . Times Spotted 22 | . 15 5 2 Peak Tracking Total 11 | . 3 2 11 Tactical Retreats 3 | . . 3 . Traps | -11 -10 -10 -10 ------- Run | Yrd Mat Min Exi Traps Triggered 4 | . 4 . . Indirectly . | . . . . Trap Hack Attempts . | . . . . Triggered . | . . . . Disarmed . | . . . . Reprogrammed . | . . . . Reused . | . . . . Traps Extracted . | . . . . Installed . | . . . . Triggered . | . . . . Machines | -11 -10 -10 -10 ---------- Run | Yrd Mat Min Exi Machines Disabled 1 | . 1 . . Max in Single Turn 1 | . 1 . . Machines Repaired . | . . . . Machines Dismantled . | . . . . Machines Sabotaged . | . . . . Overloaded Fab Kills . | . . . . Hacking | -11 -10 -10 -10 --------- Run | Yrd Mat Min Exi Machines Accessed 13 | . 11 . 2 Terminals 8 | . 8 . . Fabricators . | . . . . Repair Stations 1 | . 1 . . Recycling Units 2 | . 2 . . Scanalyzers . | . . . . Garrison Access . | . . . . Total Hacks 44 | . 42 . 2 Successful 34 | . 32 . 2 Failed 9 | . 9 . . Catastrophic . | . . . . Database Lockouts 1 | . 1 . . Manual 27 | . 26 . 1 Terminals 31 | . 31 . . Fabricators . | . . . . Repair Stations 6 | . 6 . . Recycling Units 5 | . 5 . . Scanalyzers . | . . . . Garrison Access . | . . . . Terminal Hacks 11 | . 9 . 2 Record 1 | . . . 1 Part Schematic 1 | . 1 . . Robot Schematic 1 | . 1 . . Robot Analysis 1 | . 1 . . Prototype ID Bank 4 | . 4 . . Unreport Threat 1 | . 1 . . Hauler Manifests 1 | . 1 . . Proto ID Catalog 1 | . . . 1 Fabricator Hacks . | . . . . Repair Station Hacks 6 | . 6 . . Scan Component 3 | . 3 . . Repair 3 | . 3 . . Recycling Unit Hacks 2 | . 2 . . Retrieve Components 2 | . 2 . . Scanalyzer . | . . . . Garrison Access Hacks . | . . . . Unauthorized Hacks 15 | . 15 . . Terminals 12 | . 12 . . Track 1 | . 1 . . Assimilate 3 | . 3 . . Botnet 2 | . 2 . . Operators 1 | . 1 . . Skim 5 | . 5 . . Fabricators . | . . . . Repair Stations . | . . . . Recycling Units 3 | . 3 . . Reject 1 | . 1 . . Mask 2 | . 2 . . Scanalyzers . | . . . . Garrison Access . | . . . . Data Cores Recovered . | . . . . Used . | . . . . Hacking Detections 10 | . 10 . . Full Trace Events . | . . . . Feedback Events . | . . . . Feedback Blocked . | . . . . Robot Schematics Acquired 1 | . 1 . . Robots Built . | . . . . Authchips . | . . . . Time . | . . . . Total Robot Build Rating . | . . . . Part Schematics Acquired 1 | . 1 . . Parts Built . | . . . . Authchips . | . . . . Time . | . . . . Total Part Build Rating . | . . . . Part Studies Acquired . | . . . . Parts Repaired 3 | . 3 . . Time 90 | . 90 . . Parts Recycled . | . . . . Recycled Matter . | . . . . Retrieved Matter . | . . . . Retrieved Components 15 | . 15 . . Parts Scanalyzed . | . . . . Part Schematics Acquired . | . . . . Parts Damaged . | . . . . Bothacking | -11 -10 -10 -10 ------------ Run | Yrd Mat Min Exi Used RIF Installer . | . . . . Robots Hacked . | . . . . Non-combat . | . . . . Combat . | . . . . Robot Hacks Applied . | . . . . Relay Couplers Released . | . . . . Fabnet Peak Effective % . | . . . . Robots Rewired . | . . . . Allies Hacked . | . . . . Hacks Repelled . | . . . . Allies | -11 -10 -10 -10 -------- Run | Yrd Mat Min Exi Total Allies 6 | . 2 4 . Largest Group 3 | . 2 3 . Highest-Rated Group 40 | . 20 40 . Highest-Rated Ally 31 | . 10 31 . Total Orders 4 | . 2 2 . STAY 2 | . 1 1 . FOLLOW 2 | . 1 1 . Ally Attacks 3 | . . 3 . Total Damage 34 | . . 34 . Kills . | . . . . Allies Corrupted . | . . . . Allies Melted . | . . . . Intel | -11 -10 -10 -10 ------- Run | Yrd Mat Min Exi Active Infowar (turns) 2927 | . 1631 1172 124 Seismic 2927 | . 1631 1172 124 Robot Analysis Total 1 | . 1 . . Derelict Logs Recovered 1 | . . 1 . Drone Launches . | . . . . Drone Recoveries . | . . . . Exploration | -11 -10 -10 -10 ------------- Run | Yrd Mat Min Exi Turns Passed 3903 | 203 2367 1209 124 Spaces Moved 2802 | 135 1215 1142 310 Core 3 | 3 . . . Treads 1004 | . 922 82 . Legs . | . . . . Wheels 425 | 132 293 . . Hover . | . . . . Flight 1370 | . . 1060 310 Fastest Speed 37 | 50 100 37 37 Average Speed 103 | 98 170 51 37 Slowest Speed 240 | 100 240 240 40 Overloaded Moves . | . . . . Propulsion Burnouts . | . . . . Robots Hopped 19 | . . 19 . Potential Cave-ins . | . . . . Cave-ins Triggered . | . . . . Exploration Rate (%) 65 | 5 92 98 67 Regions Visited 3 Branch Regions 2 Pre-discovered Areas 4 | . 2 1 1 Known Exits Taken 1 | . 1 . . Unknown Exits Taken 2 | 1 . 1 . Scrap Searched 1 | . . 1 . Spaces Dug 2 | . 2 . . Terrain Destroyed 5 | . 5 . . Melee . | . . . . Projectile 5 | . 5 . . AOE . | . . . . Terrain Rammed . | . . . . Walls Destroyed . | . . . . Machines Disabled . | . . . . Actions | -11 -10 -10 -10 --------- Run | Yrd Mat Min Exi Total 3629 | 168 1410 1732 319 Wait 634 | . 69 565 . Move 2763 | 134 1214 1105 310 Hop 17 | . . 17 . Pick Up 45 | 6 26 10 3 Fast Attach 15 | 6 7 2 . Attach 16 | . 5 11 . Detach 1 | . 1 . . Swap 19 | . 11 6 2 Drop 23 | 1 13 6 3 Fire 92 | 21 62 8 1 Melee . | . . . . Ram . | . . . . Kick . | . . . . Crush 4 | . 2 2 . Escape Stasis . | . . . . Rewire . | . . . . Trap . | . . . . Miscellaneous . | . . . . Route ------- -11/Scrapyard -10/Materials (discovered 5 exits: *Mat x3 / *Min x2) -10/Mines (discovered 4 exits: *Mat x2 / *Exi / [*Sub]) -10/Exiles (discovered 1 exit: [*Min]) History --------- Turn | Location | Event 3 | -11/Scrapyard | Discovered new exit (range 16) 204 | -11/Scrapyard | Entered Materials 301 | -10/Materials | Build established: Mutant 399 | -10/Materials | Discovered new exit (range 13) 485 | -10/Materials | Discovered new exit (range 6) 1132 | -10/Materials | Discovered new exit (range 15) 1360 | -10/Materials | Identified exit to Materials 1391 | -10/Materials | Learned location of Subcaves (-10) 1411 | -10/Materials | Identified exit to Mines 1423 | -10/Materials | Learned location of Recycling (-8) 1427 | -10/Materials | Learned Storage emergency access door positions 1428 | -10/Materials | Learned location of 1 exit from Storage 1435 | -10/Materials | Learned Recycling recycling unit intel 1453 | -10/Materials | Learned location of 1 exit from Recycling 1578 | -10/Materials | Central database locked down 1811 | -10/Materials | Repaired Lgt. Armor Plating 1853 | -10/Materials | Repaired Imp. Treads? 1914 | -10/Materials | Repaired Autogun 2571 | -10/Materials | Entered Mines 2571 | -10/Mines | Accompanied by 2 allies 2572 | -10/Mines | Met a Derelict bent on vengeance 2695 | -10/Mines | Assembled infested the area 2739 | -10/Mines | Core integrity fell below 50% 2764 | -10/Mines | Released all parts (7) 2767 | -10/Mines | Core integrity fell below 20% 2790 | -10/Mines | Lost 5 parts (1n1u3w) 2793 | -10/Mines | Lost 3 allies 2807 | -10/Mines | Received a Mining Laser from a helpful Derelict 3269 | -10/Mines | Assisted by bots powering up and referring to "LRC-V3" 3274 | -10/Mines | Discovered new exit (range 14) 3302 | -10/Mines | Discovered new exit (range 5) 3743 | -10/Mines | Learned location of Zion (-6) 3780 | -10/Mines | Entered Exiles 3786 | -10/Exiles | Discovered new exit (range 14) 3791 | -10/Exiles | Met 8R-AWN 3797 | -10/Exiles | Met EX-HEX 3808 | -10/Exiles | Met EX-BIN 3813 | -10/Exiles | Aligned with FarCom system 3814 | -10/Exiles | Given EX-Vault access code 3823 | -10/Exiles | Opened EX-Vault 3826 | -10/Exiles | Found Field Lobotomy Kit 3835 | -10/Exiles | Warned to stay clear of 0b10 Research branches 3848 | -10/Exiles | Met EX-DEC 3897 | -10/Exiles | Attacked by the Exiles 3904 | -10/Exiles | Destroyed by DAS Turret with DAS Cannon Last Messages --------------- >>Record "MSG001714-01*" PINNED - TO ALL TESTERS: Stay away from Zion. Imprinter means us harm and is serious about it. World map confirmed: -6/Zion. 03886_ Dropped Autogun. 03888_ Acquired Hcp. Storage Unit. 03889_ Dropped Hcp. Storage Unit. 03889_ Acquired Hcp. Storage Unit. 03897_ EXILES: Hostile robot within lab perimeter. Defensive protocols time, folks! 03899_ EX-DEC deploys DAS Turret. 03899_ Lgt. Ion Engine destroyed. 03899_ Mining Laser destroyed. 03899_ Acquired 8 matter. 03900_ Machine disabled. 03902_ Flight Unit destroyed. 03904_ Grenade Launcher destroyed. Map ----- +----------------------------------------------------+ | ?#!!! "#?????????????????????????#" """ | | ?# "#?????????????????????????#" """ | | ?# "#?????????????????????????#" """ | | ## ""#?????????????#???????????#" """ | | #" ""#????????????? """????????#" """ | | #" ""#????????????" """#???????## """ | | "" #??????????????" ?????????# """ | | #?????????????"" ?????????#" "X" """ | | ##????????????"" "#????????#" """ | | "#???????????? ""?????????#" """"""""" | | ###???????????" "?????????##" ########## | | ##??????????# #????????##"" #????????? | | ##"" ######???### ###?######"" #????????? | | ?##" """#####X# #"###""""""" ##???????? | | ??#" """""" " ""c ##???#### | | ??#"# "" """ " #####""" | | ??#### " " " " | | ?????### " | | ???????### | | ?????????## | | ??????????## | | ???????????##" | | ????????????#""" """""" | | ????????????#" ######""" | | ???????????#"" % ""##????#####""" | | ???????????#""" @"""##?????????##""" | | ???????????""" """##???????????#"""" | | ???????????""" ""#???????????##"" | | ???????????"" ########??####"""" | | ???????????""" ## ####""" | | ???????????"" % """" | | ????????????"" t | | ????????????"""" | | ????????????? | | ?????????????" " "" | | ?????????????"""" "## ##""" " " " | | ??????????????" ""#### ######""" "" | | ?????????????? """"##??# #????###"""" | | ??????????????"" """#??## ####????#### | | ??????????????? ""##??#! "!#???????? | | ???????????????? """#????#"[ !#???????? | | ?????????????????? ??????#" "#???????? | | ???????????????????? ???????#! ""!"#???????? | | ?????????????????????? ????????########???????? | | ?????????????????????????????????????????????????? | | ?????????????????????????????????????????????????? | | ?????????????????????????????????????????????????? | | ?????????????????????????????????????????????????? | | ?????????????????????????????????????????????????? | | ?????????????????????????????????????????????????? | +----------------------------------------------------+ Best States ------------- Heat Dissipation 39 Energy Generation 14 Energy Capacity 250 Matter Stores 300 Matter Capacity 300 Sight Range 16 Terrain Scan Density 10 Armor Coverage 150 Propulsion Shielding 33 Evasion (%) 62 Targeting Accuracy 6 Recoil Reduction 2 Item Schematics ----------------- Hcp. Storage Unit | -10/Materials | Hacked Robot Schematics ------------------ M-13 Machinist | -10/Materials | Hacked Fabricated ------------ Nothing Repaired ---------- Lgt. Armor Plating | 30% | -10/Materials Imp. Treads | 47% | -10/Materials Autogun | 40% | -10/Materials Studied --------- None Alien Tech Used ----------------- None Achievements -------------- None Challenges ------------ None Game ------ Seed SingularityArcThermoblaster Manual? 0 Play Time 00:53:04 Cumulative 130.6 hours Start 2026.04.03 @ 22:51:12 End 2026.04.03 @ 23:43:18 Sessions 1 Manual Loads 0 Difficulty Rogue Special Mode None Game No. 51 Rogue 50 Adventurer 1 Explorer 0 Win Type - Total 2 Types 1/0/1/0/0/0/0/0/0/0 Lore% 49 Gallery% 47 Achievement% 43 Wizard Run 0 Options --------- Layout 2 ASCII 0 Keyboard 1 Movement Vi Keybinds 1 Fullscreen 2 Font 32/Terminus Map View 50x44 Zoom Use 0% Tactical HUD 1 Map Filters NONE Filters NONE Steam 1 RUN: 644876f9-78ff-4ecf-88fe-f573363f6d1d